Workbook

Sheet Início
B1: ACERCA DESTE MODELO
B2: Utilize este livro Orçamento de Eventos para controlar as Despesas e os Rendimentos de um evento.
B3: Introduza o Nome do Evento e os detalhes nas tabelas nas folhas de cálculo Despesas e Rendimentos.
B4: As Despesas Totais e os Rendimentos Totais são calculados automaticamente.
B5: O Resumo e o Gráfico dos Lucros e Perdas são atualizados automaticamente na folha de cálculo Resumo dos Lucros e Perdas.
B6: Nota:
B7: Existem instruções adicionais na coluna A de cada folha de cálculo. O texto encontra-se intencionalmente oculto. Para remover o texto, selecione a coluna A e, em seguida, selecione ELIMINAR.
B8: Para saber mais sobre as tabelas, prima SHIFT+F10 numa tabela, selecione a opção TABELA e, em seguida, selecione TEXTO ALTERNATIVO

Sheet Despesas
A1: Introduza as despesas Estimadas e Reais de cada categoria nas respetivas tabelas nesta folha de cálculo e o Nome do Evento na célula D1 para personalizar o título desta e das outras folhas de cálculo. O subtítulo desta folha de cálculo encontra-se na célula H1. Existem instruções úteis sobre como utilizar esta folha de cálculo nas células desta coluna. A instrução seguinte encontra-se na célula A3. | B1: Orçamento de Evento para | D1: Nome do Evento | H1: DESPESAS
A3: A etiqueta Despesas Totais encontra-se na célula à direita, a etiqueta Estimadas na célula G3 e Reais na célula H3. | B3: DESPESAS TOTAIS | G3: Estimado | H3: Real
A4: As Despesas Estimadas Totais na célula G4 e as Despesas Reais Totais na célula H4 são calculadas automaticamente. A instrução seguinte encontra-se na célula A6. | G4: =SUM(C11,C19,C25,C32,G11,G19,G24) -> 882.00 € | H4: =SUM(D11,D19,D25,D32,H11,H19,H24) -> 302.00 €
A6: Introduza as Despesas com o Local na tabela que começa na célula à direita e as Despesas com Catering na tabela que começa na célula F6. A instrução seguinte encontra-se na célula A13. | B6: Local | C6: Estimado | D6: Real | F6: Catering | G6: Estimado | H6: Real
B7: Taxas dos quartos e salas | C7: 500.00 € | F7: Alimentação
B8: Funcionários do local | F8: Bebidas | G8: 20.00 €
B9: Equipamento | F9: Roupa de Mesa | H9: 20.00 €
B10: Mesas e cadeiras | F10: Funcionários e gorjetas
B11: Total | C11: =SUBTOTAL(109,DespesasComOLocal[Estimado]) -> 500.00 € | D11: =SUBTOTAL(103,DespesasComOLocal[Real]) -> 0.00 € | F11: Total | G11: =SUBTOTAL(109,DespesasComCatering[Estimado]) -> 20.00 € | H11: =SUBTOTAL(103,DespesasComCatering[Real]) -> 1.00 €
A13: Introduza as Despesas com Decorações na tabela que começa na célula à direita e as Despesas com o Programa na tabela que começa na célula F13. A instrução seguinte encontra-se na célula A21. | B13: Decorações | C13: Estimado | D13: Real | F13: Programa | G13: Estimado | H13: Real
B14: Flores | C14: 200.00 € | D14: 300.00 € | F14: Intérpretes
B15: Velas | F15: Oradores | G15: 30.00 €
B16: Iluminação | F16: Viagens
B17: Balões | F17: Hotel
B18: Fornecimento de papel | F18: Outros
B19: Total | C19: =SUBTOTAL(109,DespesasComDecorações[Estimado]) -> 200.00 € | D19: =SUBTOTAL(109,DespesasComDecorações[Real]) -> 300.00 € | F19: Total | G19: =SUBTOTAL(109,DespesasComOPrograma[Estimado]) -> 30.00 € | H19: =SUBTOTAL(103,DespesasComOPrograma[Real]) -> 0.00 €
A21: Introduza as Despesas com Publicidade na tabela que começa na célula à direita e as Despesas com Prémios na tabela que começa na célula F21. A instrução seguinte encontra-se na célula A27. | B21: Publicidade | C21: Estimado | D21: Real | F21: Prémios | G21: Estimado | H21: Real
B22: Design gráfico | F22: Fitas/Condecorações/Troféus
B23: Fotocópias/Impressões | C23: 20.00 € | F23: Presentes | G23: 100.00 €
B24: Correio | F24: Total | G24: =SUBTOTAL(109,DespesasComPrémios[Estimado]) -> 100.00 € | H24: =SUBTOTAL(103,DespesasComPrémios[Real]) -> 0.00 €
B25: Total | C25: =SUBTOTAL(109,DespesasComPublicidade[Estimado]) -> 20.00 € | D25: =SUBTOTAL(103,DespesasComPublicidade[Real]) -> 0.00 €
A27: Introduza as Despesas Variadas na tabela que começa na célula à direita. | B27: Diversos | C27: Estimado | D27: Real
B28: Telefone | D28: 13.00 €
B29: Transportes | C29: 12.00 €
B30: Fornecimento de papelaria
B31: Serviços de fax
B32: Total | C32: =SUBTOTAL(109,DespesasDiversas[Estimado]) -> 12.00 € | D32: =SUBTOTAL(103,DespesasDiversas[Real]) -> 1.00 €

Sheet Rendimentos
A1: Introduza os Rendimentos Estimados e Reais para cada categoria nas respetivas tabelas nesta folha de cálculo. O título desta folha de cálculo é atualizado automaticamente nas células à direita. O subtítulo encontra-se na célula G1. Existem instruções úteis sobre como utilizar esta folha de cálculo nas células desta coluna. A instrução seguinte encontra-se na célula A3. | B1: =Despesas!B1 -> Orçamento de Evento para | D1: =Despesas!D1 -> Nome do Evento | G1: RENDIMENTOS
A3: A etiqueta Rendimentos Totais encontra-se na célula à direita, a etiqueta Estimado na célula F3 e Real na célula G3. | B3: RENDIMENTOS TOTAIS | F3: Estimado | G3: Real
A4: Os Rendimentos Estimados Totais são calculados automaticamente na célula F4 e os Rendimentos Reais Totais na célula G4. | F4: =SUM(Entradas[[#Totals],[Rendimentos Estimados]],AnúnciosNoPrograma[[#Totals],[Rendimentos Estimados]],ExpositoresEVendedores[[#Totals],[Rendimentos Estimados]],VendaDeItens[[#Totals],[Rendimentos Estimados]]) -> 1,936.00 € | G4: =SUM(Entradas[[#Totals],[Rendimentos Reais]],AnúnciosNoPrograma[[#Totals],[Rendimentos Reais]],ExpositoresEVendedores[[#Totals],[Rendimentos Reais]],VendaDeItens[[#Totals],[Rendimentos Reais]]) -> 1,831.00 €
A5: A etiqueta Entradas encontra-se na célula à direita. | B5: ENTRADAS
A6: Introduza o número de Entradas Estimadas e Reais com o preço dos bilhetes na tabela que começa na célula à direita. Os Rendimentos Estimados e Reais das Entradas são calculados automaticamente. A instrução seguinte encontra-se na célula A11. | B6: N.º Estimado | C6: N.º Real | D6: Tipo | E6: Preço | F6: Rendimentos Estimados | G6: Rendimentos Reais
B7: 300 | C7: 278 | D7: Adultos / | E7: 5.00 € | F7: =B7*E7 -> 1,500.00 € | G7: =C7*E7 -> 1,390.00 €
B8: 197 | C8: 195 | D8: Crianças / | E8: 2.00 € | F8: =B8*E8 -> 394.00 € | G8: =C8*E8 -> 390.00 €
B9: 42 | C9: 51 | D9: Outros / | E9: 1.00 € | F9: =B9*E9 -> 42.00 € | G9: =C9*E9 -> 51.00 €
B10: Total | F10: =SUBTOTAL(109,Entradas[Rendimentos Estimados]) -> 1,936.00 € | G10: =SUBTOTAL(109,Entradas[Rendimentos Reais]) -> 1,831.00 €
A11: A etiqueta Anúncios no Programa encontra-se na célula à direita. | B11: ANÚNCIOS NO PROGRAMA
A12: Introduza o número de Anúncios no Programa Estimados e Reais e o Preço dos anúncios na tabela que começa na célula à direita. Os Rendimentos Estimados e Reais dos Anúncios são calculados automaticamente. A instrução seguinte encontra-se na célula A17. | B12: N.º Estimado | C12: N.º Real | D12: Tipo | E12: Preço | F12: Rendimentos Estimados | G12: Rendimentos Reais
B13: 12 | D13: Capas / | F13: =B13*E13 -> 0.00 € | G13: =C13*E13 -> 0.00 €
C14: 158 | D14: Meias-páginas / | F14: =B14*E14 -> 0.00 € | G14: =C14*E14 -> 0.00 €
B15: 4 | D15: Quartos-de-páginas / | F15: =B15*E15 -> 0.00 € | G15: =C15*E15 -> 0.00 €
B16: Total | F16: =SUBTOTAL(109,AnúnciosNoPrograma[Rendimentos Estimados]) -> 0.00 € | G16: =SUBTOTAL(109,AnúnciosNoPrograma[Rendimentos Reais]) -> 0.00 €
A17: A etiqueta Expositores ou Vendedores encontra-se na célula à direita. | B17: EXPOSITORES/VENDEDORES
A18: Introduza o número de expositores e vendedores Estimados e Reais e os Preços dos stands na tabela que começa na célula à direita. Os Rendimentos Estimados e Reais são calculados automaticamente. A instrução seguinte encontra-se na célula A23. | B18: N.º Estimado | C18: N.º Real | D18: Tipo | E18: Preço | F18: Rendimentos Estimados | G18: Rendimentos Reais
B19: 23 | D19: Stands grandes / | F19: =B19*E19 -> 0.00 € | G19: =C19*E19 -> 0.00 €
B20: 354 | D20: Stands médios / | F20: =B20*E20 -> 0.00 € | G20: =C20*E20 -> 0.00 €
B21: 56 | D21: Stands pequenos / | F21: =B21*E21 -> 0.00 € | G21: =C21*E21 -> 0.00 €
B22: Total | F22: =SUBTOTAL(109,ExpositoresEVendedores[Rendimentos Estimados]) -> 0.00 € | G22: =SUBTOTAL(109,ExpositoresEVendedores[Rendimentos Reais]) -> 0.00 €
A23: A etiqueta Venda de itens encontra-se na célula à direita. | B23: VENDA DE ITENS
A24: Introduza o número de Itens vendidos Estimados e Reais e os Preços dos itens na tabela que começa na célula à direita. Os Rendimentos Estimados e Reais são calculados automaticamente. | B24: N.º Estimado | C24: N.º Real | D24: Tipo | E24: Preço | F24: Rendimentos Estimados | G24: Rendimentos Reais
D25: Itens / | F25: =B25*E25 -> 0.00 € | G25: =C25*E25 -> 0.00 €
B26: 123 | D26: Itens / | F26: =B26*E26 -> 0.00 € | G26: =C26*E26 -> 0.00 €
D27: Itens / | F27: =B27*E27 -> 0.00 € | G27: =C27*E27 -> 0.00 €
B28: 13 | D28: Itens / | F28: =B28*E28 -> 0.00 € | G28: =C28*E28 -> 0.00 €
B29: Total | F29: =SUBTOTAL(109,VendaDeItens[Rendimentos Estimados]) -> 0.00 € | G29: =SUBTOTAL(109,VendaDeItens[Rendimentos Reais]) -> 0.00 €

Sheet Resumo dos Lucros e Perdas
A1: O Resumo e o Gráfico dos Lucros e Perdas a mostrar os Rendimentos e as Despesas Totais são atualizados automaticamente nesta folha de cálculo. O título desta folha de cálculo é atualizado automaticamente nas células à direita. O subtítulo encontra-se na célula G1 e G2. Existem instruções úteis sobre como utilizar esta folha de cálculo nas células desta coluna. A instrução seguinte encontra-se na célula A3. | B1: =Despesas!B1 -> Orçamento de Evento para | D1: =Despesas!D1 -> Nome do Evento | G1: RESUMO
G2: dos Lucros e Perdas
A3: O gráfico de barras a mostrar os Rendimentos e Despesas Estimados em comparação com os Rendimentos e Despesas Reais encontra-se na célula E3. | E3: O gráfico de barras a mostrar os Rendimentos e Despesas Estimados em comparação com os Rendimentos e Despesas Reais encontra-se nesta célula.
A4: A tabela Resumo que começa na célula à direita é atualizada automaticamente. A instrução seguinte encontra-se na célula A8. | B4: Total | C4: Estimado | D4: Real
B5: Rendimentos totais | C5: =Rendimentos!F10 -> 1,936.00 € | D5: =Rendimentos!F4 -> 1,936.00 €
B6: Despesas totais | C6: =Despesas!G4 -> 882.00 € | D6: =Despesas!H4 -> 302.00 €
A8: Os lucros ou perdas totais Estimados são calculados automaticamente na célula C8 e os lucros ou perdas totais Reais na célula D8. | B8: Lucro total (ou perda) | C8: =C5-C6 -> 1,054.00 € | D8: =D5-D6 -> 1,634.00 €
